bitfinex/quotes_BTCUSD_20250903
["timestamp","ask_amount","ask_price","bid_price","bid_amount"]
[1756887565369,1.93480252,111380.0,111370.0,0.00046713]
[1756887565577,1.93280252,111380.0,111370.0,0.00046713]
[1756887566013,1.93480252,111380.0,111370.0,0.00046713]
[1756887566217,1.78204252,111380.0,111370.0,0.00046713]
[1756887566433,1.91343107,111380.0,111370.0,0.00046713]
[1756887566878,1.91543107,111380.0,111370.0,0.00046713]
[1756887567990,1.76267107,111380.0,111370.0,0.00046713]
[1756887568191,1.91535107,111380.0,111370.0,0.00046713]
[1756887569153,1.69173225,111380.0,111370.0,0.00046713]
[1756887569374,1.69173225,111380.0,111370.0,0.00556713]
[1756887569375,1.27764872,111380.0,111370.0,0.00556713]
[1756887569607,0.79611364,111380.0,111370.0,0.00556713]
[1756887569837,0.64347364,111380.0,111370.0,0.00556713]
[1756887570068,1.42828872,111380.0,111370.0,0.00556713]
[1756887570443,1.42928872,111380.0,111370.0,0.00556713]
[1756887570679,1.43142872,111380.0,111370.0,0.00556713]
[1756887571344,1.42842872,111380.0,111370.0,0.00556713]
[1756887571550,1.42942872,111380.0,111370.0,0.00556713]
[1756887571769,1.42842872,111380.0,111370.0,0.00556713]
[1756887572398,1.42742872,111380.0,111370.0,0.00556713]
[1756887573920,1.42528872,111380.0,111370.0,0.00556713]
[1756887574461,1.42742872,111380.0,111370.0,0.00556713]
[1756887574875,1.42528872,111380.0,111370.0,0.00556713]
[1756887575075,0.79111364,111380.0,111370.0,0.00556713]
[1756887575301,1.42528872,111380.0,111370.0,0.00556713]
[1756887575500,1.42742872,111380.0,111370.0,0.00556713]
[1756887579390,1.42742872,111380.0,111370.0,0.00249713]
[1756887579600,1.42742872,111380.0,111370.0,0.00566713]
[1756887580705,1.11034118,111380.0,111370.0,0.00566713]
[1756887581554,1.11034118,111380.0,111370.0,0.00046713]
[1756887581773,1.11050118,111380.0,111370.0,0.00252713]
[1756887582012,0.95770118,111380.0,111370.0,0.00569713]
[1756887582255,0.64061364,111380.0,111370.0,0.00569713]
[1756887582484,1.11036118,111380.0,111370.0,0.00252713]
[1756887582706,1.11036118,111380.0,111370.0,0.00569713]
[1756887582846,1.42744872,111380.0,111370.0,0.00569713]
[1756887583463,1.21617704,111380.0,111370.0,0.00569713]
[1756887583874,1.06333704,111380.0,111370.0,0.00569713]
[1756887584073,1.21621704,111380.0,111370.0,0.00569713]
[1756887586022,0.79331364,111380.0,111370.0,0.00569713]
[1756887586233,1.21621704,111380.0,111370.0,0.00569713]
[1756887586441,0.79331364,111380.0,111370.0,0.00569713]
[1756887586622,1.21621704,111380.0,111370.0,0.00569713]
[1756887587279,1.21621704,111380.0,111370.0,0.00252713]
[1756887591341,1.21943704,111380.0,111370.0,0.00046713]
[1756887594335,1.23883065,111380.0,111370.0,0.00046713]
[1756887595618,1.24383065,111380.0,111370.0,0.00046713]
[1756887596105,1.08895065,111380.0,111370.0,0.00046713]
[1756887596345,1.22219704,111380.0,111370.0,0.00046713]
[1756887596543,1.24359789,111380.0,111370.0,0.00046713]
[1756887596917,1.24159789,111380.0,111370.0,0.00046713]
[1756887597111,1.24359789,111380.0,111370.0,0.00046713]
[1756887597324,1.29208346,111380.0,111370.0,0.00046713]
[1756887598630,1.29008346,111380.0,111370.0,0.00046713]
[1756887599049,1.29208346,111380.0,111370.0,0.00046713]
[1756887599619,1.29840327,111380.0,111370.0,0.00046713]
[1756887599806,1.37261785,111380.0,111370.0,0.00046713]
[1756887601106,1.37253785,111380.0,111370.0,0.00046713]
[1756887602954,1.39347667,111380.0,111370.0,0.00046713]
[1756887604422,1.36926209,111380.0,111370.0,0.00046713]
[1756887607775,1.36426209,111380.0,111370.0,0.00046713]
[1756887609104,1.16321652,111380.0,111370.0,0.00046713]
[1756887609319,1.31553652,111380.0,111370.0,0.00046713]
[1756887612378,1.31545652,111380.0,111370.0,0.00046713]
[1756887613495,1.31541652,111380.0,111370.0,0.00046713]
[1756887617312,0.74031312,111380.0,111370.0,0.00046713]
[1756887617714,1.31533652,111380.0,111370.0,0.00046713]
[1756887618702,1.31207652,111380.0,111370.0,0.00249713]
[1756887618900,1.25191251,111380.0,111370.0,0.00249713]
[1756887619103,1.40399251,111380.0,111370.0,0.00249713]
[1756887619298,1.40720251,111380.0,111370.0,0.00046713]
[1756887619943,1.31528652,111380.0,111370.0,0.00046713]
[1756887622300,1.31524652,111380.0,111370.0,0.00046713]
[1756887624039,1.28952586,111380.0,111370.0,0.00046713]
[1756887624230,1.29584221,111380.0,111370.0,0.00046713]
[1756887625704,0.86960881,111380.0,111370.0,0.00550713]
[1756887625926,1.11769339,111380.0,111370.0,0.00550713]
[1756887626189,1.37057011,111380.0,111370.0,0.00550713]
[1756887626641,1.36857011,111380.0,111370.0,0.00550713]
[1756887627082,1.37273011,111380.0,111370.0,0.00550713]
[1756887627493,1.37073011,111380.0,111370.0,0.00550713]
[1756887627924,1.35132383,111380.0,111370.0,0.00550713]
[1756887628421,1.34916383,111380.0,111370.0,0.00550713]
[1756887629085,1.35116383,111380.0,111370.0,0.00550713]
[1756887629264,1.35332383,111380.0,111370.0,0.00550713]
[1756887630205,1.35332383,111380.0,111370.0,0.00249713]
[1756887630548,1.35332383,111380.0,111370.0,0.00046713]
[1756887630765,1.35328383,111380.0,111370.0,0.00046713]
[1756887631395,1.35649383,111380.0,111370.0,0.00046713]
[1756887632893,1.42167624,111380.0,111370.0,0.00046713]
[1756887636555,0.17965221,111330.0,111310.0,0.27786658]
[1756887636769,0.17966223,111320.0,111310.0,0.27809495]
[1756887637216,0.20666961,111320.0,111310.0,0.28313495]
[1756887637446,0.20666961,111320.0,111310.0,0.02991027]
[1756887639201,0.20666961,111320.0,111310.0,0.03691027]
[1756887639841,0.20666961,111320.0,111310.0,0.03491027]
[1756887640067,0.20666961,111320.0,111310.0,0.03291027]
[1756887640498,0.20666961,111320.0,111310.0,0.03591027]
[1756887640685,0.20666961,111320.0,111310.0,0.02991027]
[1756887640900,0.20666961,111320.0,111310.0,0.20958864]
[1756887641126,0.02700738,111320.0,111310.0,0.21358864]
[1756887641386,0.0087912,111330.0,111320.0,0.17966223]
[1756887641606,0.03579787,111330.0,111320.0,0.209918]
[1756887641827,0.54665276,111330.0,111320.0,0.20767223]
[1756887642043,0.55587122,111330.0,111320.0,0.20767223]
[1756887643174,0.97877462,111330.0,111320.0,0.00619]
[1756887643644,0.87332908,111330.0,111320.0,0.00619]
[1756887645232,1.02512908,111330.0,111320.0,0.00619]
[1756887645442,1.02516908,111330.0,111320.0,0.00619]
[1756887647110,1.46206908,111330.0,111320.0,0.00619]
[1756887653867,1.46410908,111330.0,111320.0,0.00619]
[1756887654104,1.46712908,111330.0,111320.0,0.001]
[1756887654762,1.46410908,111330.0,111320.0,0.001]
[1756887655293,1.55602507,111330.0,111320.0,0.001]
[1756887655522,1.55904507,111330.0,111320.0,0.001]
[1756887655961,1.55602507,111330.0,111320.0,0.00299]
[1756887656562,1.23856721,111330.0,111320.0,0.00299]
[1756887656800,1.23652721,111330.0,111320.0,0.00619]
[1756887657022,1.55602507,111330.0,111320.0,0.00619]
[1756887658639,1.08672721,111330.0,111320.0,0.00619]
[1756887658843,1.55382507,111330.0,111320.0,0.00619]
[1756887659048,1.55586507,111330.0,111320.0,0.00619]
[1756887660713,1.55586507,111330.0,111320.0,0.00299]
[1756887661140,1.23840721,111330.0,111320.0,0.00619]
[1756887661569,1.55586507,111330.0,111320.0,0.00619]
[1756887662407,1.55586507,111330.0,111320.0,0.00299]
[1756887662614,1.55586507,111330.0,111320.0,0.00619]
[1756887663672,1.55586507,111330.0,111320.0,0.00299]
[1756887664485,1.55888507,111330.0,111320.0,0.001]
[1756887667230,1.24142721,111330.0,111320.0,0.001]
[1756887667416,1.55888507,111330.0,111320.0,0.001]
[1756887668888,1.87634293,111330.0,111320.0,0.001]
[1756887673906,1.43944293,111330.0,111320.0,0.001]
[1756887674564,0.51966223,111320.0,111310.0,0.00014027]
[1756887674785,1.83483394,111320.0,111310.0,0.00014027]
[1756887674999,1.83990394,111320.0,111310.0,0.00014027]
[1756887675223,1.20498822,111320.0,111310.0,0.00014027]
[1756887675434,1.86691543,111320.0,111310.0,0.00014027]
[1756887677177,1.86691543,111320.0,111310.0,0.00114027]
[1756887679274,1.71547543,111320.0,111310.0,0.00114027]
[1756887679485,1.86719543,111320.0,111310.0,0.00114027]
[1756887679702,1.43029543,111320.0,111310.0,0.00114027]
[1756887682906,1.27857543,111320.0,111310.0,0.00114027]
[1756887683121,1.42718543,111320.0,111310.0,0.00114027]
[1756887686283,1.27554543,111320.0,111310.0,0.00114027]
[1756887686488,1.42710543,111320.0,111310.0,0.00114027]
[1756887687433,1.43013543,111320.0,111310.0,0.00114027]
[1756887689637,1.42702543,111320.0,111310.0,0.00114027]
[1756887690371,1.43005543,111320.0,111310.0,0.00114027]
[1756887690539,0.79513971,111320.0,111310.0,0.00114027]
[1756887690679,1.43005543,111320.0,111310.0,0.00114027]
[1756887695535,1.27857543,111320.0,111310.0,0.00114027]
[1756887695750,0.79194971,111320.0,111310.0,0.00325027]
[1756887695988,1.42686543,111320.0,111310.0,0.00325027]
[1756887696210,0.63858971,111320.0,111310.0,0.00646027]
[1756887696430,1.10744757,111320.0,111310.0,0.00646027]
[1756887696741,1.27350543,111320.0,111310.0,0.00646027]
[1756887696956,1.42490543,111320.0,111310.0,0.00646027]
[1756887697162,1.42490543,111320.0,111310.0,0.18613864]
[1756887697163,0.36701149,111320.0,111310.0,0.18613864]
[1756887697380,0.54667372,111320.0,111310.0,0.18613864]
[1756887697587,0.54667372,111320.0,111310.0,0.5035965]
[1756887698174,0.54667372,111320.0,111310.0,0.18613864]
[1756887702728,0.86413158,111320.0,111310.0,0.00646027]
[1756887703151,0.86413158,111320.0,111310.0,0.00870624]
[1756887703376,0.86413158,111320.0,111310.0,0.00646027]
[1756887704144,0.86413158,111320.0,111310.0,0.18838461]
[1756887704332,0.86413158,111320.0,111310.0,0.18613864]
[1756887705169,0.86413158,111320.0,111310.0,0.00646027]
[1756887705378,0.86610158,111320.0,111310.0,0.00870624]
[1756887705582,0.54864372,111320.0,111310.0,0.00870624]
[1756887705790,0.97502477,111320.0,111310.0,0.00114027]
[1756887705997,1.12646477,111320.0,111310.0,0.00114027]
[1756887706192,1.12338477,111320.0,111310.0,0.00114027]
[1756887706812,1.12646477,111320.0,111310.0,0.00114027]
[1756887707147,1.12338477,111320.0,111310.0,0.00326027]
[1756887707583,1.12338477,111320.0,111310.0,0.00114027]
[1756887708610,1.12646477,111320.0,111310.0,0.00114027]
[1756887711429,1.12338477,111320.0,111310.0,0.00326027]
[1756887711660,0.70008372,111320.0,111310.0,0.00326027]
[1756887711858,0.70008372,111320.0,111310.0,0.00650027]
[1756887712069,1.12338477,111320.0,111310.0,0.00650027]
[1756887713186,0.97194477,111320.0,111310.0,0.00650027]
[1756887713397,1.12334477,111320.0,111310.0,0.00650027]
[1756887713939,0.70004372,111320.0,111310.0,0.00650027]
[1756887717019,1.12334477,111320.0,111310.0,0.00650027]
[1756887718049,1.12334477,111320.0,111310.0,0.00326027]
[1756887718227,1.12642477,111320.0,111310.0,0.00114027]
[1756887719769,1.21834076,111320.0,111310.0,0.00114027]
[1756887719982,1.64164181,111320.0,111310.0,0.00114027]
[1756887720870,1.66105414,111320.0,111310.0,0.00114027]
[1756887721323,1.667371,111320.0,111310.0,0.00114027]
[1756887721954,1.667371,111320.0,111310.0,0.00014027]
[1756887722178,1.66105414,111320.0,111310.0,0.00014027]
[1756887722465,1.66836903,111320.0,111310.0,0.00014027]
[1756887722684,1.66736903,111320.0,111310.0,0.00014027]
[1756887722918,1.66936903,111320.0,111310.0,0.00014027]
[1756887723147,1.66305414,111320.0,111310.0,0.00014027]
[1756887723396,1.76155997,111320.0,111310.0,0.00014027]
[1756887723635,1.76055997,111320.0,111310.0,0.00014027]
[1756887723852,1.76155997,111320.0,111310.0,0.00014027]
[1756887724483,1.76155997,111320.0,111310.0,1e-08]
[1756887724955,1.74030588,111320.0,111310.0,1e-08]
[1756887725160,1.83214187,111320.0,111310.0,1e-08]
[1756887728319,1.84708304,111320.0,111310.0,1e-08]
[1756887728537,1.87369038,111320.0,111310.0,1e-08]
[1756887728770,1.88775576,111320.0,111310.0,1e-08]
[1756887728992,1.92881129,111320.0,111310.0,1e-08]
[1756887729854,1.92780615,111320.0,111310.0,1e-08]
[1756887730088,1.92980615,111320.0,111310.0,1e-08]
[1756887730838,1.92680615,111320.0,111310.0,1e-08]
[1756887732363,1.93080615,111320.0,111310.0,1e-08]
[1756887732852,1.93380615,111320.0,111310.0,1e-08]
[1756887734748,1.89275576,111320.0,111310.0,1e-08]
[1756887735338,1.91700138,111320.0,111310.0,1e-08]
[1756887735724,1.89669747,111320.0,111310.0,1e-08]
[1756887735904,1.91348436,111320.0,111310.0,1e-08]
[1756887738139,1.87245185,111320.0,111310.0,1e-08]
[1756887738321,1.89669747,111320.0,111310.0,1e-08]
[1756887738677,1.91348417,111320.0,111310.0,1e-08]
[1756887738884,1.90718074,111320.0,111310.0,1e-08]
[1756887739159,1.91347575,111320.0,111310.0,1e-08]
[1756887744231,1.94585823,111320.0,111310.0,1e-08]
[1756887744429,0.17972681,111280.0,111270.0,0.06970693]
[1756887744656,0.17972681,111280.0,111270.0,0.06118547]
[1756887744657,1.18630385,111280.0,111270.0,0.06118547]
[1756887744884,1.18630385,111280.0,111270.0,0.06334547]
[1756887745085,1.21332536,111280.0,111270.0,0.00260673]
[1756887746000,1.21332536,111280.0,111270.0,0.00360673]
[1756887746736,1.21332536,111280.0,111270.0,0.00668673]
[1756887746938,1.21332536,111280.0,111270.0,0.00868673]
[1756887747727,1.21332536,111280.0,111270.0,0.00668673]
[1756887748925,1.21332536,111280.0,111270.0,0.00568673]
[1756887749115,0.63866431,111280.0,111270.0,0.00568673]
[1756887749335,1.21332536,111280.0,111270.0,0.00568673]
[1756887749738,0.79002431,111280.0,111270.0,0.00568673]
[1756887749948,1.21332536,111280.0,111270.0,0.00568673]
[1756887753252,1.21549536,111280.0,111270.0,0.00260673]
[1756887753466,1.21549536,111280.0,111270.0,0.00044673]
[1756887753467,1.64199641,111280.0,111270.0,0.00044673]
[1756887753695,1.66141808,111280.0,111270.0,0.00260673]
[1756887754121,1.66141808,111280.0,111270.0,0.00044673]
[1756887754427,1.23811703,111280.0,111270.0,0.00044673]
[1756887754648,1.66141808,111280.0,111270.0,0.00044673]
[1756887755384,1.24443855,111280.0,111270.0,0.00044673]
[1756887755604,1.24483855,111280.0,111270.0,0.00260673]
[1756887757744,1.24483855,111280.0,111270.0,0.00044673]
[1756887758395,1.24475855,111280.0,111270.0,0.00260673]
[1756887758835,1.09307855,111280.0,111270.0,0.00260673]
[1756887759042,0.8161675,111280.0,111270.0,0.00572673]
[1756887759494,1.08770855,111280.0,111270.0,0.00572673]
[1756887759504,1.23946855,111280.0,111270.0,0.00572673]
[1756887759732,1.08770855,111280.0,111270.0,0.00572673]
[1756887759944,1.23946855,111280.0,111270.0,0.00572673]
[1756887760156,1.23946855,111280.0,111270.0,0.00260673]
[1756887761122,1.23946855,111280.0,111270.0,0.00572673]
[1756887761477,1.23946855,111280.0,111270.0,0.00260673]
[1756887761697,0.65808598,111280.0,111270.0,0.00572673]
[1756887761908,0.79038431,111280.0,111270.0,0.00572673]
[1756887762247,0.79042431,111280.0,111270.0,0.00572673]
[1756887763832,0.63866431,111280.0,111270.0,0.00572673]
[1756887764044,0.79038431,111280.0,111270.0,0.00572673]
[1756887765333,0.54674832,111280.0,111270.0,0.00797351]
[1756887765538,0.69842832,111280.0,111270.0,0.53024724]
[1756887765761,0.54674832,111280.0,111270.0,0.52800046]
[1756887766180,0.36702151,111280.0,111270.0,0.21036969]
[1756887766568,0.36702151,111280.0,111270.0,0.52800046]
[1756887766919,0.36702151,111280.0,111270.0,0.21036969]
[1756887767375,0.36702151,111280.0,111270.0,0.52800046]
[1756887767629,0.56967,111300.0,111270.0,0.52800046]
[1756887767630,0.18867842,111310.0,111280.0,0.17971537]
[1756887767875,0.02701174,111310.0,111300.0,0.1817797]
[1756887768122,0.02701174,111310.0,111300.0,0.49941047]
[1756887768366,0.49729719,111320.0,111300.0,0.2097997]
[1756887768594,0.6162235,111320.0,111310.0,0.00312]
[1756887768823,0.29859273,111320.0,111310.0,0.00521]
[1756887769060,0.6162235,111320.0,111310.0,0.00521]
[1756887769278,0.6162235,111320.0,111310.0,0.00321]
[1756887769513,0.6162235,111320.0,111310.0,0.00209]
[1756887770003,0.9562235,111320.0,111310.0,0.00213673]
[1756887770461,1.27385427,111320.0,111310.0,0.00213673]
[1756887771438,1.27485427,111320.0,111310.0,0.00213673]
[1756887771663,0.9572235,111320.0,111310.0,0.00213673]
[1756887772113,0.63959273,111320.0,111310.0,0.00213673]
[1756887772303,0.9572235,111320.0,111310.0,0.00213673]
[1756887773147,0.9593435,111320.0,111310.0,0.00213673]
[1756887773362,0.9593435,111320.0,111310.0,0.00313673]
[1756887773933,0.9593435,111320.0,111310.0,0.00213673]
[1756887774119,0.9593435,111320.0,111310.0,0.00313673]
[1756887774797,1.3962435,111320.0,111310.0,0.00313673]
[1756887775065,1.3994435,111320.0,111310.0,0.00313673]
[1756887775312,1.3984435,111320.0,111310.0,0.00313673]
[1756887775946,1.3984435,111320.0,111310.0,0.00613673]
[1756887779837,1.3984435,111320.0,111310.0,0.00404673]
[1756887780062,1.71607427,111320.0,111310.0,0.00404673]
[1756887785342,1.08081273,111320.0,111310.0,0.00404673]
[1756887785573,1.3984435,111320.0,111310.0,0.00404673]
[1756887786016,1.71607427,111320.0,111310.0,0.00404673]
[1756887786693,1.71607427,111320.0,111310.0,0.1858151]
[1756887786909,1.3984435,111320.0,111310.0,0.1858151]
[1756887787103,1.39843931,111320.0,111310.0,0.1858151]
[1756887787240,1.21345708,111320.0,111310.0,0.1858151]
[1756887787459,1.30120332,111320.0,111310.0,0.1858151]
[1756887789610,0.80391032,111320.0,111310.0,0.1858151]
[1756887789817,0.80391032,111320.0,111310.0,0.50650587]
[1756887789818,0.4369,111320.0,111310.0,0.50650587]
[1756887792017,0.34921846,111330.0,111320.0,0.17966223]
[1756887792251,0.34921846,111330.0,111320.0,0.335688]
[1756887792479,0.34,111330.0,111320.0,0.33344223]
[1756887793281,0.34885443,111330.0,111320.0,0.33344223]
[1756887794365,0.34,111330.0,111320.0,0.33344223]
[1756887794588,0.68463745,111340.0,111330.0,0.17964609]
[1756887794785,0.86626741,111340.0,111330.0,0.00438557]
[1756887795000,0.86924741,111340.0,111330.0,0.15380557]
[1756887796678,0.86924741,111340.0,111330.0,0.15376557]
[1756887798606,0.87846557,111340.0,111330.0,0.15376557]
[1756887798864,0.87846557,111340.0,111330.0,0.15148]
[1756887799101,1.19609634,111340.0,111330.0,0.15148]
[1756887799365,0.87846557,111340.0,111330.0,0.15148]
[1756887800307,0.87846557,111340.0,111320.0,0.17966223]
[1756887800308,0.17964609,111330.0,111320.0,0.17966223]
[1756887800535,0.84225686,111330.0,111320.0,0.33328223]
[1756887802306,0.84225686,111330.0,111320.0,0.33524223]
[1756887803000,0.84225686,111330.0,111320.0,0.33624223]
[1756887803175,0.84225686,111330.0,111320.0,0.33628223]
[1756887803984,0.34,111330.0,111320.0,0.656973]
[1756887804183,0.34,111330.0,111320.0,0.653913]
[1756887805057,0.5364664,111340.0,111330.0,0.17964609]
[1756887805286,0.51145972,111340.0,111330.0,0.17964609]
[1756887806490,0.53846289,111340.0,111330.0,0.17964609]
[1756887806698,0.51145972,111340.0,111330.0,0.17964609]
[1756887807879,0.51145972,111340.0,111330.0,0.33100609]
[1756887809948,0.51145972,111340.0,111330.0,0.17964609]
[1756887810169,0.51145972,111340.0,111330.0,0.33096609]
[1756887812648,0.19382895,111340.0,111330.0,0.33096609]
[1756887812852,0.51145972,111340.0,111330.0,0.33096609]
[1756887813735,0.19382895,111340.0,111330.0,0.33096609]
[1756887813970,0.51145972,111340.0,111330.0,0.33096609]
[1756887817056,0.51145972,111340.0,111330.0,0.15132]
[1756887817494,0.51145972,111340.0,111330.0,0.33310609]
[1756887819705,0.51145972,111340.0,111330.0,0.33096609]
[1756887820159,0.51145972,111340.0,111330.0,0.15132]
[1756887820359,0.51145972,111340.0,111330.0,0.33096609]
[1756887821687,0.51145972,111340.0,111330.0,0.33293609]
[1756887822919,0.51145972,111340.0,111330.0,0.33096609]
[1756887825541,0.19382895,111340.0,111330.0,0.33096609]
[1756887831538,0.19382895,111340.0,111330.0,0.33293609]
[1756887832542,0.19382895,111340.0,111330.0,0.33593609]
[1756887837544,0.19382895,111340.0,111330.0,0.33396609]
[1756887839039,0.19382895,111340.0,111330.0,0.33593609]
[1756887840169,0.18884895,111340.0,111330.0,0.33593609]
[1756887840943,0.18884895,111340.0,111330.0,0.33899609]
[1756887841167,0.18884812,111340.0,111330.0,0.33593609]
[1756887841431,0.17962996,111340.0,111330.0,0.33593609]
[1756887841665,0.27672595,111340.0,111330.0,0.15432]
[1756887841878,0.27672595,111340.0,111330.0,0.003]
[1756887841879,0.85992194,111340.0,111330.0,0.003]
[1756887842101,1.2330448,111340.0,111330.0,0.003]
[1756887842315,1.24062035,111340.0,111330.0,0.003]
[1756887842531,0.81748016,111340.0,111330.0,0.003]
[1756887842786,1.24062035,111340.0,111330.0,0.003]
[1756887842997,1.26003526,111340.0,111330.0,0.002]
[1756887843225,1.26103526,111340.0,111330.0,0.002]
[1756887843422,0.51966223,111320.0,111310.0,0.12024673]
[1756887843673,0.94280242,111320.0,111310.0,0.11894213]
[1756887843888,0.94798242,111320.0,111310.0,0.11894213]
[1756887844300,0.52484223,111320.0,111300.0,0.34315824]
[1756887844517,0.52484223,111320.0,111310.0,0.00197]
[1756887845158,0.52484223,111320.0,111310.0,0.00397]
[1756887846007,0.34,111320.0,111310.0,0.18895434]
[1756887846221,0.21564991,111330.0,111310.0,0.60984856]
[1756887846446,0.55564991,111330.0,111320.0,0.15564]
[1756887846653,0.56082991,111330.0,111320.0,0.15761]
[1756887847312,0.56082991,111330.0,111320.0,0.15985577]
[1756887851547,0.17966223,111320.0,111310.0,0.06332]
[1756887851758,0.17966223,111320.0,111310.0,0.21876]
[1756887851933,0.18504223,111320.0,111310.0,0.22079]
[1756887852558,0.18504223,111320.0,111310.0,0.22179]
[1756887852979,0.55564991,111330.0,111310.0,0.40146837]
[1756887853193,0.55889991,111330.0,111310.0,0.40146837]
[1756887854281,0.55889991,111330.0,111310.0,0.40346837]
[1756887854708,0.55889991,111330.0,111310.0,0.40146837]
[1756887854920,0.55889991,111330.0,111310.0,0.40046837]
[1756887855135,0.17966223,111320.0,111310.0,0.40046837]
[1756887855350,0.18504223,111320.0,111310.0,0.22063]
[1756887856226,0.18504223,111320.0,111310.0,0.40030837]
[1756887856665,0.18504223,111320.0,111310.0,0.40130837]
[1756887856891,0.18504223,111320.0,111310.0,0.21956]
[1756887857636,0.18504223,111320.0,111310.0,0.22156]
[1756887857855,0.18504223,111320.0,111310.0,0.22363]
[1756887859302,0.18504223,111320.0,111310.0,0.40330837]
[1756887859926,0.18504223,111320.0,111310.0,0.22363]
[1756887860601,0.18504223,111320.0,111310.0,0.06839]
[1756887860733,0.18504223,111320.0,111310.0,0.22343]
[1756887860928,0.18504223,111320.0,111310.0,0.22128]
[1756887861145,0.60818242,111320.0,111310.0,0.158]
[1756887861574,0.18504223,111320.0,111310.0,0.158]
[1756887866424,0.60818242,111320.0,111310.0,0.158]
[1756887867588,0.63519038,111320.0,111310.0,0.158]
[1756887868199,0.21205019,111320.0,111310.0,0.158]
[1756887868399,0.97519038,111320.0,111310.0,0.003]
[1756887868660,1.06710637,111320.0,111310.0,0.003]
[1756887868972,1.22182637,111320.0,111310.0,0.003]
[1756887869627,1.65872637,111320.0,111310.0,0.003]
[1756887870279,1.50400637,111320.0,111310.0,0.003]
[1756887871121,0.98570019,111320.0,111310.0,0.00731597]
[1756887871341,0.98357019,111320.0,111310.0,0.00731597]
[1756887871937,0.98895019,111320.0,111310.0,0.00731597]
[1756887872895,0.98895019,111320.0,111310.0,0.003]
[1756887873415,1.41209038,111320.0,111310.0,0.003]
[1756887874768,1.56681038,111320.0,111310.0,0.003]
[1756887876441,1.41209038,111320.0,111310.0,0.003]
[1756887876905,1.56673038,111320.0,111310.0,0.003]
[1756887877451,1.14359019,111320.0,111310.0,0.003]
[1756887877872,1.56673038,111320.0,111310.0,0.003]
[1756887878077,0.98895019,111320.0,111310.0,0.003]
[1756887878284,1.41209038,111320.0,111310.0,0.003]
[1756887879115,0.98895019,111320.0,111310.0,0.003]
[1756887879330,1.41209038,111320.0,111310.0,0.003]
[1756887879738,0.98895019,111320.0,111310.0,0.00732597]
[1756887881243,1.41209038,111320.0,111310.0,0.00732597]
[1756887881657,1.41209038,111320.0,111310.0,0.003]
[1756887883832,1.56813038,111320.0,111310.0,0.003]
[1756887885300,0.80928796,111320.0,111310.0,0.18475837]
[1756887885527,0.46390796,111320.0,111310.0,0.34373837]
[1756887885765,0.64357019,111320.0,111310.0,0.34059421]
[1756887886181,0.64672019,111320.0,111310.0,0.34059421]
[1756887888633,0.64357019,111320.0,111310.0,0.34059421]
[1756887889343,0.64884019,111320.0,111310.0,0.34059421]
[1756887889749,0.96626741,111320.0,111310.0,0.34059421]
[1756887890452,0.64884019,111320.0,111310.0,0.34059421]
[1756887891092,0.64357019,111320.0,111310.0,0.34059421]
[1756887891306,0.64569019,111320.0,111310.0,0.34059421]
[1756887891520,0.64884019,111320.0,111310.0,0.34059421]
[1756887893612,0.46917796,111320.0,111310.0,0.34059421]
[1756887894046,0.78660518,111320.0,111310.0,0.34059421]
[1756887894751,0.96626741,111320.0,111310.0,0.34059421]
[1756887896867,0.64884019,111320.0,111310.0,0.34059421]
[1756887899567,0.64884019,111320.0,111310.0,0.18467421]
[1756887899778,0.96626741,111320.0,111310.0,0.00291584]
[1756887899984,0.96626741,111320.0,111310.0,0.15799584]
[1756887900622,0.96626741,111320.0,111310.0,0.00291584]
[1756887900852,1.77877463,111320.0,111310.0,0.00291584]
[1756887901283,1.87069062,111320.0,111310.0,0.00291584]
[1756887901497,2.18811784,111320.0,111310.0,0.00291584]
[1756887901744,1.84313383,111320.0,111310.0,0.002]
[1756887901961,1.79260768,111320.0,111310.0,0.002]
[1756887902200,1.77062635,111320.0,111310.0,0.002]
[1756887902621,0.17967837,111310.0,111300.0,4.674e-05]
[1756887902827,1.0615688,111310.0,111300.0,4.674e-05]
[1756887903076,1.0636888,111310.0,111300.0,4.674e-05]
[1756887903260,1.0668388,111310.0,111300.0,4.674e-05]
[1756887903999,1.09385365,111310.0,111300.0,4.674e-05]
[1756887904231,1.09385365,111310.0,111300.0,0.00204674]
[1756887905068,1.09385365,111310.0,111300.0,0.00304674]
[1756887906926,1.84319686,111310.0,111300.0,0.00304674]
[1756887907161,1.96181102,111310.0,111300.0,0.00304674]
[1756887907377,1.96181102,111310.0,111300.0,0.00104674]
[1756887907657,1.96181102,111310.0,111300.0,4.674e-05]
[1756887908620,0.81458125,111280.0,111270.0,0.0004]
[1756887908837,1.06145724,111280.0,111270.0,0.0004]
[1756887909029,1.06346724,111280.0,111270.0,0.0004]
[1756887909252,1.06670724,111280.0,111270.0,0.0004]
[1756887909438,1.09372841,111280.0,111270.0,0.0004]
[1756887910332,1.09372841,111280.0,111270.0,0.0024]
[1756887910797,0.45887397,111280.0,111270.0,0.0024]
[1756887911001,1.09372841,111280.0,111270.0,0.0024]
[1756887911943,1.10295608,111280.0,111270.0,0.0034]
[1756887913292,0.46810164,111280.0,111270.0,0.0034]
[1756887913506,1.10295608,111280.0,111270.0,0.0034]
[1756887915776,1.10335608,111280.0,111270.0,0.0034]
[1756887915954,1.10331608,111280.0,111270.0,0.0034]
[1756887918151,1.10331608,111280.0,111270.0,0.00384936]
[1756887919422,0.94799608,111280.0,111270.0,0.00384936]
[1756887919628,1.10347608,111280.0,111270.0,0.00384936]
[1756887921668,1.87375811,111280.0,111270.0,0.00384936]
[1756887921879,1.80370345,111280.0,111270.0,0.00059936]
[1756887922095,1.80104282,111280.0,111270.0,0.00059936]
[1756887922313,1.65197312,111280.0,111270.0,0.00059936]
[1756887922525,1.624744,111280.0,111270.0,0.00044936]
[1756887922736,1.44331608,111280.0,111270.0,0.00044936]
[1756887923188,1.44531608,111280.0,111270.0,0.00044936]
[1756887923616,1.44331608,111280.0,111270.0,0.00044936]
[1756887924081,1.44831608,111280.0,111270.0,0.00044936]
[1756887924256,1.44531608,111280.0,111270.0,0.00044936]
[1756887924489,1.7627433,111280.0,111270.0,0.00044936]
[1756887924661,1.7657433,111280.0,111270.0,0.00044936]
[1756887928300,1.78509334,111280.0,111270.0,0.00044936]
[1756887929300,1.79139705,111280.0,111270.0,0.00044936]
[1756887932053,1.81233587,111280.0,111270.0,0.00044936]
[1756887932260,1.85332852,111280.0,111270.0,0.00044936]
[1756887932482,1.885711,111280.0,111270.0,0.00044936]
[1756887932934,2.97990865,111280.0,111270.0,0.00044936]
[1756887933442,2.95573424,111280.0,111270.0,0.00044936]
[1756887933789,1.91141659,111280.0,111270.0,0.00044936]
[1756887935194,2.86369825,111280.0,111270.0,0.00044936]
[1756887935400,2.91226701,111280.0,111270.0,0.00044936]
[1756887935613,1.95998535,111280.0,111270.0,0.00044936]
[1756887937787,2.91226701,111280.0,111270.0,0.00044936]
[1756887937989,2.97180052,111280.0,111270.0,0.00044936]